[Event "GER-ch Youth-U14w 2022"]
[Site "Willingen"]
[Date "2022.06.08"]
[Round "5.3"]
[White "Reich, Elisabeth"]
[Black "Lorenz, Veronika"]
[Result "0-1"]
[ECO "C50"]
[WhiteElo "1457"]
[BlackElo "1510"]
[Annotator "NA RC COMBH"]
[PlyCount "116"]
[EventDate "2022.06.05"]
[EventType "swiss"]
[EventRounds "9"]
[EventCountry "GER"]
[SourceTitle "playchess.com"]
[Source "ChessBase"]
[SourceQuality "1"]
[TimeControl "40/4500+30:900+30"]

1. e4 {[%emt 0:00:00]} e5 {[%emt 0:00:00]} 2. Nf3 {[%emt 0:00:00]} Nc6 {[%emt 0:00:00]} 3. Bc4 {[%emt 0:00:00]} Nf6 {[%emt 0:00:00]} 4. d3 {[%emt 0:00:00]} Bc5 {[%emt 0:00:00]} 5. O-O {[%emt 0:00:00]} O-O {[%emt 0:00:00]} 6. Nbd2 {[%emt 0:00:00]} d5 {[%emt 0:00:00]} 7. exd5 {[%emt 0:00:00]} Nxd5 {[%emt 0:00:00]} 8. Re1 {[%emt 0:00:00]} Re8 {[%emt 0:00:00]} 9. Ne4 {[%emt 0:00:00]} Bb6 {[%emt 0:01:05]} 10. Nfg5 {[%emt 0:00:00]} f6 {[%emt 0:04:24]} 11. Qh5 {[%emt 0:00:00]} Be6 {[%emt 0:14:25]} 12. Qxh7+ {[%emt 0:00:00]} Kf8 {[%emt 0:00:07]} 13. Nxe6+ {[%emt 0:01:41]} Rxe6 {[%emt 0:00:07]} 14. Nc3 {[%emt 0:07:04]} Nce7 {[%emt 0:08:35]} 15. Qh3 {[%emt 0:06:48]} Rd6 {[%emt 0:10:05]} 16. Nxd5 {[%emt 0:07:23]} Nxd5 {[%emt 0:00:20]} 17. Be3 {[%emt 0:03:42]} Ke7 {[%emt 0:06:39]} 18. Qg4 {[%emt 0:04:11]} Qd7 {[%emt 0:01:58]} 19. Bxd5 {[%emt 0:01:58]} Rxd5 {[%emt 0:02:04]} 20. Bxb6 {[%emt 0:00:55]} cxb6 {[%emt 0:04:43]} 21. Qe4 {[%emt 0:01:37]} Qd8 {[%emt 0:04:37]} 22. Re3 {[%emt 0:04:02]} Rc8 {[%emt 0:03:18]} 23. Rc1 {[%emt 0:01:05]} Qd7 {[%emt 0:02:02]} 24. Rg3 {[%emt 0:00:50]} Kf8 {[%emt 0:00:52]} 25. Qh7 {[%emt 0:00:39]} g5 {[%emt 0:02:59]} 26. Qe4 {[%emt 0:04:08]} Rd4 {[%emt 0:02:37]} 27. Qe2 {[%emt 0:03:11]} e4 {[%emt 0:06:24]} 28. Re1 {[%emt 0:10:52]} exd3 {[%emt 0:08:14]} 29. Rxd3 {[%emt 0:00:22]} Rxd3 {[%emt 0:00:01]} 30. cxd3 {[%emt 0:00:31]} Rd8 {[%emt 0:01:03]} 31. Rd1 {[%emt 0:00:19]} Qd4 {[%emt 0:02:37]} 32. h3 {[%emt 0:00:41]} Re8 {[%emt 0:00:41]} 33. Qd2 {[%emt 0:00:28]} Qe5 {[%emt 0:01:12]} 34. Rc1 {[%emt 0:01:42]} Qe2 {[%emt 0:00:20]} 35. Rc2 {[%emt 0:00:28]} Qxd2 {[%emt 0:00:52]} 36. Rxd2 {[%emt 0:00:02]} Re1+ {[%emt 0:00:01]} 37. Kh2 {[%emt 0:00:08]} Ke7 {[%emt 0:00:07]} 38. Rc2 {[%emt 0:00:18]} Kd6 {[%emt 0:00:25]} 39. Kg3 {[%emt 0:00:15]} Rd1 {[%emt 0:00:13]} 40. Rc3 {[%emt 0:00:10]} Rd2 {[%emt 0:00:07]} 41. Rb3 {[%emt 0:15:07]} Ke5 {[%emt 0:15:24]} 42. Ra3 {[%emt 0:00:38]} a6 {[%emt 0:00:31]} 43. f3 {[%emt 0:00:22]} Rxb2 {[%emt 0:01:03]} 44. Rb3 {[%emt 0:00:09]} Rxb3 {[%emt 0:00:00]} 45. axb3 {[%emt 0:00:00]} a5 {[%emt 0:00:00]} 46. Kg4 {[%emt 0:00:00]} b5 {[%emt 0:00:00]} 47. d4+ {[%emt 0:00:00]} Kxd4 {[%emt 0:00:00]} 48. Kf5 {[%emt 0:00:00]} a4 {[%emt 0:00:00]} 49. bxa4 {[%emt 0:00:00]} bxa4 {[%emt 0:00:00]} 50. Kxf6 {[%emt 0:00:00]} a3 {[%emt 0:00:00]} 51. Kxg5 {[%emt 0:00:00]} a2 {[%emt 0:00:00]} 52. g4 {[%emt 0:00:00]} a1=Q {[%emt 0:00:00]} 53. f4 {[%emt 0:00:00]} Qa5+ {[%emt 0:00:00]} 54. f5 {[%emt 0:00:00]} Qd8+ {[%emt 0:00:00]} 55. Kg6 {[%emt 0:00:00]} Ke5 {[%emt 0:00:00]} 56. g5 {[%emt 0:00:00]} Qg8+ {[%emt 0:00:00]} 57. Kh6 {[%emt 0:00:00]} Kxf5 {[%emt 0:00:00]} 58. h4 {[%emt 0:00:00]} Qg6# 0-1

[Event "GER-ch Youth-U14w 2022"]
[Site "Willingen"]
[Date "2022.06.08"]
[Round "5.4"]
[White "Bezsonna, Polina"]
[Black "Margaryan, Venera"]
[Result "1-0"]
[ECO "C00"]
[WhiteElo "1511"]
[BlackElo "1477"]
[Annotator "NA RC COMBH"]
[PlyCount "113"]
[EventDate "2022.06.05"]
[EventType "swiss"]
[EventRounds "9"]
[EventCountry "GER"]
[SourceTitle "playchess.com"]
[Source "ChessBase"]
[SourceQuality "1"]
[TimeControl "40/4500+30:900+30"]

1. e4 {[%emt 0:00:00]} e6 {[%emt 0:00:00]} 2. b3 {[%emt 0:00:00]} d5 {[%emt 0:00:00]} 3. Bb2 {[%emt 0:00:00]} dxe4 {[%emt 0:00:00]} 4. Nc3 {[%emt 0:00:00]} Nf6 {[%emt 0:00:00]} 5. Qe2 {[%emt 0:00:00]} Nbd7 {[%emt 0:00:00]} 6. Nxe4 {[%emt 0:00:00]} b6 {[%emt 0:01:54]} 7. Nxf6+ {[%emt 0:00:00]} Nxf6 {[%emt 0:01:14]} 8. Qf3 {[%emt 0:10:26]} Qd5 {[%emt 0:09:51]} 9. Bxf6 {[%emt 0:07:55]} Qxf3 {[%emt 0:01:20]} 10. Nxf3 {[%emt 0:02:35]} gxf6 {[%emt 0:00:06]} 11. Bb5+ {[%emt 0:03:31]} Bd7 {[%emt 0:02:44]} 12. Bxd7+ {[%emt 0:00:31]} Kxd7 {[%emt 0:00:23]} 13. O-O-O {[%emt 0:05:40]} Bg7 {[%emt 0:06:47]} 14. Rhe1 {[%emt 0:00:53]} Rad8 {[%emt 0:08:46]} 15. d4 {[%emt 0:03:32]} c6 {[%emt 0:04:59]} 16. c4 {[%emt 0:01:15]} Kc7 {[%emt 0:08:01]} 17. Rd3 {[%emt 0:11:38]} Rd7 {[%emt 0:03:16]} 18. Red1 {[%emt 0:06:09]} Rhd8 {[%emt 0:00:38]} 19. Kc2 {[%emt 0:00:31]} a6 {[%emt 0:03:21]} 20. Ng1 {[%emt 0:01:36]} f5 {[%emt 0:02:37]} 21. Ne2 {[%emt 0:02:00]} h6 {[%emt 0:04:13]} 22. b4 {[%emt 0:05:26]} b5 {[%emt 0:04:24]} 23. c5 {[%emt 0:01:36]} Rd5 {[%emt 0:02:25]} 24. f4 {[%emt 0:01:50]} h5 {[%emt 0:01:51]} 25. Kc3 {[%emt 0:06:17]} Bf6 {[%emt 0:03:29]} 26. R1d2 {[%emt 0:05:49]} Rg8 {[%emt 0:02:46]} 27. Nc1 {[%emt 0:02:03]} Rg4 {[%emt 0:03:02]} 28. g3 {[%emt 0:01:42]} h4 {[%emt 0:01:16]} 29. Rg2 {[%emt 0:03:49]} hxg3 {[%emt 0:01:30]} 30. hxg3 {[%emt 0:00:04]} Rd8 {[%emt 0:00:47]} 31. Ne2 {[%emt 0:00:51]} Ra8 {[%emt 0:00:59]} 32. Rd1 {[%emt 0:01:27]} a5 {[%emt 0:00:37]} 33. a3 {[%emt 0:01:51]} axb4+ {[%emt 0:00:28]} 34. Kxb4 {[%emt 0:00:35]} Ra4+ {[%emt 0:01:20]} 35. Kb3 {[%emt 0:00:37]} Rc4 {[%emt 0:03:22]} 36. Rh2 {[%emt 0:00:22]} Kd7 {[%emt 0:02:44]} 37. Rd3 {[%emt 0:00:35]} Rg8 {[%emt 0:01:05]} 38. Rh1 {[%emt 0:00:32]} Ra8 {[%emt 0:00:25]} 39. Kb2 {[%emt 0:00:18]} Raa4 {[%emt 0:00:54]} 40. Rhd1 {[%emt 0:00:23]} Rxc5 {[%emt 0:00:26]} 41. Nc3 {[%emt 0:15:40]} Bxd4 {[%emt 0:00:00]} 42. Rxd4+ {[%emt 0:00:00]} Rxd4 {[%emt 0:00:00]} 43. Rxd4+ {[%emt 0:00:00]} Ke7 {[%emt 0:00:00]} 44. Kb3 {[%emt 0:00:00]} f6 {[%emt 0:00:00]} 45. Kb4 {[%emt 0:00:00]} e5 {[%emt 0:00:45]} 46. Kxc5 {[%emt 0:00:00]} exd4 {[%emt 0:00:06]} 47. Nd1 {[%emt 0:00:00]} Kd7 {[%emt 0:03:44]} 48. Kxd4 {[%emt 0:00:00]} Kd6 {[%emt 0:00:19]} 49. Ne3 {[%emt 0:00:00]} c5+ {[%emt 0:00:18]} 50. Kc3 {[%emt 0:00:00]} Ke6 {[%emt 0:01:07]} 51. Kd3 {[%emt 0:00:00]} c4+ {[%emt 0:03:45]} 52. Nxc4 {[%emt 0:00:00]} bxc4+ {[%emt 0:00:16]} 53. Kxc4 {[%emt 0:00:00]} Kd6 {[%emt 0:02:57]} 54. a4 {[%emt 0:00:00]} Kc6 {[%emt 0:01:25]} 55. a5 {[%emt 0:00:00]} Kb7 {[%emt 0:04:00]} 56. Kd5 {[%emt 0:00:00]} Ka6 {[%emt 0:00:52]} 57. Ke6 {[%emt 0:00:00]} 1-0

[Event "GER-ch Youth-U14w 2022"]
[Site "Willingen"]
[Date "2022.06.08"]
[Round "5.5"]
[White "Stepanjan, Marianne"]
[Black "Jacobasch, Ronja"]
[Result "0-1"]
[ECO "B08"]
[WhiteElo "1489"]
[BlackElo "1441"]
[Annotator "NA RC COMBH"]
[PlyCount "130"]
[EventDate "2022.06.05"]
[EventType "swiss"]
[EventRounds "9"]
[EventCountry "GER"]
[SourceTitle "playchess.com"]
[Source "ChessBase"]
[SourceQuality "1"]
[TimeControl "40/4500+30:900+30"]

1. e4 {[%emt 0:00:00]} d6 {[%emt 0:00:00]} 2. d4 {[%emt 0:00:00]} Nf6 {[%emt 0:00:00]} 3. Nc3 {[%emt 0:00:00]} g6 {[%emt 0:00:00]} 4. Nf3 {[%emt 0:00:00]} Bg7 {[%emt 0:00:00]} 5. Be2 {[%emt 0:00:00]} O-O {[%emt 0:00:00]} 6. Be3 {[%emt 0:00:00]} c6 {[%emt 0:00:00]} 7. Qd2 {[%emt 0:00:00]} b5 {[%emt 0:00:00]} 8. a3 {[%emt 0:00:00]} Ng4 {[%emt 0:02:25]} 9. Bg5 {[%emt 0:00:00]} h6 {[%emt 0:01:20]} 10. Bh4 {[%emt 0:00:00]} a5 {[%emt 0:02:53]} 11. h3 {[%emt 0:00:00]} Nf6 {[%emt 0:00:18]} 12. d5 {[%emt 0:02:17]} Ba6 {[%emt 0:09:12]} 13. Qe3 {[%emt 0:21:15]} cxd5 {[%emt 0:08:15]} 14. Bxf6 {[%emt 0:09:38]} exf6 {[%emt 0:02:14]} 15. Nxd5 {[%emt 0:03:11]} Nd7 {[%emt 0:02:38]} 16. O-O {[%emt 0:02:43]} Re8 {[%emt 0:04:57]} 17. Qf4 {[%emt 0:06:41]} Nc5 {[%emt 0:05:43]} 18. Bd3 {[%emt 0:09:17]} Nxd3 {[%emt 0:05:15]} 19. cxd3 {[%emt 0:00:11]} Bb7 {[%emt 0:03:16]} 20. Ne3 {[%emt 0:03:41]} Rc8 {[%emt 0:04:19]} 21. Rab1 {[%emt 0:07:32]} d5 {[%emt 0:04:04]} 22. Nxd5 {[%emt 0:04:39]} Bxd5 {[%emt 0:00:27]} 23. exd5 {[%emt 0:00:06]} Qxd5 {[%emt 0:01:12]} 24. Qd2 {[%emt 0:00:46]} a4 {[%emt 0:01:59]} 25. Rfe1 {[%emt 0:02:01]} Rxe1+ {[%emt 0:01:34]} 26. Rxe1 {[%emt 0:00:27]} Rd8 {[%emt 0:00:43]} 27. Rd1 {[%emt 0:03:09]} f5 {[%emt 0:01:11]} 28. Qb4 {[%emt 0:01:50]} Qc6 {[%emt 0:08:39]} 29. d4 {[%emt 0:03:13]} Rd5 {[%emt 0:04:05]} 30. Qd2 {[%emt 0:02:11]} Qd7 {[%emt 0:01:49]} 31. Qb4 {[%emt 0:02:08]} g5 {[%emt 0:03:51]} 32. Rd2 {[%emt 0:03:22]} g4 {[%emt 0:01:59]} 33. hxg4 {[%emt 0:00:40]} fxg4 {[%emt 0:00:17]} 34. Ne1 {[%emt 0:00:30]} Rxd4 {[%emt 0:01:35]} 35. Rxd4 {[%emt 0:00:28]} Bxd4 {[%emt 0:01:52]} 36. Qd2 {[%emt 0:00:12]} Qd6 {[%emt 0:01:38]} 37. Qe2 {[%emt 0:01:09]} Qe6 {[%emt 0:01:52]} 38. Qd2 {[%emt 0:00:40]} Bg7 {[%emt 0:01:03]} 39. Nd3 {[%emt 0:00:22]} Qd7 {[%emt 0:00:38]} 40. Qe2 {[%emt 0:00:21]} h5 {[%emt 0:00:47]} 41. Nf4 {[%emt 0:00:00]} Qf5 {[%emt 0:00:00]} 42. Nd3 {[%emt 0:00:00]} Qe6 {[%emt 0:00:00]} 43. Qc2 {[%emt 0:00:00]} Qf5 {[%emt 0:00:00]} 44. Qe2 {[%emt 0:00:00]} Kh7 {[%emt 0:00:00]} 45. Qc2 {[%emt 0:01:56]} h4 {[%emt 0:00:00]} 46. b3 {[%emt 0:02:03]} axb3 {[%emt 0:00:00]} 47. Qxb3 {[%emt 0:00:07]} h3 {[%emt 0:01:53]} 48. Ne1 {[%emt 0:03:56]} Bd4 {[%emt 0:04:10]} 49. Qd3 {[%emt 0:07:08]} Bxf2+ {[%emt 0:03:02]} 50. Kf1 {[%emt 0:01:49]} hxg2+ {[%emt 0:01:06]} 51. Kxg2 {[%emt 0:00:08]} Qxd3 {[%emt 0:00:08]} 52. Nxd3 {[%emt 0:00:06]} Bd4 {[%emt 0:00:37]} 53. Kg3 {[%emt 0:00:54]} f5 {[%emt 0:00:34]} 54. Kf4 {[%emt 0:00:36]} Kg6 {[%emt 0:00:18]} 55. Kg3 {[%emt 0:01:46]} Kg5 {[%emt 0:00:28]} 56. Ne1 {[%emt 0:00:40]} f4+ {[%emt 0:00:23]} 57. Kg2 {[%emt 0:00:11]} Bb2 {[%emt 0:00:36]} 58. Nc2 {[%emt 0:00:44]} f3+ {[%emt 0:01:10]} 59. Kf2 {[%emt 0:00:23]} Kf4 {[%emt 0:00:20]} 60. Kf1 {[%emt 0:00:27]} g3 {[%emt 0:00:37]} 61. Ne1 {[%emt 0:00:41]} g2+ {[%emt 0:00:31]} 62. Nxg2+ {[%emt 0:00:26]} fxg2+ {[%emt 0:00:08]} 63. Kxg2 {[%emt 0:00:05]} Ke3 {[%emt 0:00:09]} 64. Kf1 {[%emt 0:00:14]} Bxa3 {[%emt 0:00:06]} 65. Ke1 {[%emt 0:00:10]} Kd3 {[%emt 0:00:07]} 0-1

[Event "GER-ch Youth-U14w 2022"]
[Site "Willingen"]
[Date "2022.06.08"]
[Round "5.6"]
[White "Eichhorn, Mathilda"]
[Black "Flierl, Veronika"]
[Result "0-1"]
[ECO "B19"]
[WhiteElo "1330"]
[BlackElo "1427"]
[Annotator "NA RC COMBH"]
[PlyCount "72"]
[EventDate "2022.06.05"]
[EventType "swiss"]
[EventRounds "9"]
[EventCountry "GER"]
[SourceTitle "playchess.com"]
[Source "ChessBase"]
[SourceQuality "1"]
[TimeControl "40/4500+30:900+30"]

1. e4 {[%emt 0:00:00]} c6 {[%emt 0:00:00]} 2. d4 {[%emt 0:00:00]} d5 {[%emt 0:00:00]} 3. Nc3 {[%emt 0:00:00]} dxe4 {[%emt 0:00:00]} 4. Nxe4 {[%emt 0:00:00]} Bf5 {[%emt 0:00:00]} 5. Ng3 {[%emt 0:00:00]} Bg6 {[%emt 0:00:00]} 6. h4 {[%emt 0:00:00]} h6 {[%emt 0:00:00]} 7. Nf3 {[%emt 0:00:00]} Nd7 {[%emt 0:00:00]} 8. h5 {[%emt 0:00:00]} Bh7 {[%emt 0:00:00]} 9. Bd3 {[%emt 0:00:00]} Bxd3 {[%emt 0:00:00]} 10. Qxd3 {[%emt 0:00:00]} e6 {[%emt 0:00:00]} 11. Bd2 {[%emt 0:00:00]} Qc7 {[%emt 0:00:00]} 12. O-O-O {[%emt 0:00:00]} O-O-O {[%emt 0:00:00]} 13. Ne4 {[%emt 0:00:00]} Ngf6 {[%emt 0:00:00]} 14. Qe2 {[%emt 0:03:28]} Nxe4 {[%emt 0:00:00]} 15. Qxe4 {[%emt 0:00:07]} Nf6 {[%emt 0:00:00]} 16. Qe2 {[%emt 0:01:09]} Bd6 {[%emt 0:01:50]} 17. g3 {[%emt 0:03:30]} Rhe8 {[%emt 0:05:05]} 18. c4 {[%emt 0:07:40]} b6 {[%emt 0:16:19]} 19. Kb1 {[%emt 0:02:24]} Kb7 {[%emt 0:00:49]} 20. Rc1 {[%emt 0:01:02]} Qe7 {[%emt 0:05:27]} 21. Rc2 {[%emt 0:05:39]} Nd7 {[%emt 0:03:33]} 22. Rhc1 {[%emt 0:02:22]} Rc8 {[%emt 0:03:47]} 23. Be3 {[%emt 0:03:12]} e5 {[%emt 0:11:34]} 24. c5 {[%emt 0:10:53]} Bc7 {[%emt 0:01:51]} 25. dxe5 {[%emt 0:01:24]} Nxe5 {[%emt 0:05:48]} 26. cxb6 {[%emt 0:01:07]} Bxb6 {[%emt 0:00:29]} 27. Bd4 {[%emt 0:06:35]} Bxd4 {[%emt 0:04:20]} 28. Nxd4 {[%emt 0:00:20]} Qd7 {[%emt 0:03:22]} 29. Nb3 {[%emt 0:02:10]} Ka8 {[%emt 0:06:38]} 30. Qa6 {[%emt 0:02:52]} Re7 {[%emt 0:05:17]} 31. f4 {[%emt 0:03:32]} Ng4 {[%emt 0:07:21]} 32. Rxc6 {[%emt 0:02:56]} Rxc6 {[%emt 0:00:45]} 33. Rxc6 {[%emt 0:12:21]} Re8 {[%emt 0:02:55]} 34. a3 {[%emt 0:01:06]} Rb8 {[%emt 0:01:06]} 35. Ka2 {[%emt 0:02:02]} Qd5 {[%emt 0:00:29]} 36. Rc8 {[%emt 0:00:28]} Qxb3+ {[%emt 0:00:24]} 0-1

[Event "GER-ch Youth-U14w 2022"]
[Site "Willingen"]
[Date "2022.06.08"]
[Round "5.7"]
[White "Ottlik, Marie"]
[Black "Wartenberg, Alissa"]
[Result "0-1"]
[ECO "C55"]
[WhiteElo "1442"]
[BlackElo "1741"]
[Annotator "NA RC COMBH"]
[PlyCount "96"]
[EventDate "2022.06.05"]
[EventType "swiss"]
[EventRounds "9"]
[EventCountry "GER"]
[SourceTitle "playchess.com"]
[Source "ChessBase"]
[SourceQuality "1"]
[TimeControl "40/4500+30:900+30"]

1. e4 {[%emt 0:00:00]} e5 {[%emt 0:00:00]} 2. Nf3 {[%emt 0:00:00]} Nc6 {[%emt 0:00:00]} 3. Bc4 {[%emt 0:00:00]} Nf6 {[%emt 0:00:00]} 4. d3 {[%emt 0:00:00]} h6 {[%emt 0:00:00]} 5. c3 {[%emt 0:00:00]} d6 {[%emt 0:00:00]} 6. Nbd2 {[%emt 0:00:00]} g5 {[%emt 0:00:00]} 7. Nf1 {[%emt 0:00:00]} g4 {[%emt 0:00:00]} 8. N3d2 {[%emt 0:04:40]} h5 {[%emt 0:00:00]} 9. Ne3 {[%emt 0:17:02]} Rg8 {[%emt 0:00:00]} 10. Ndf1 {[%emt 0:08:34]} h4 {[%emt 0:05:36]} 11. Nd5 {[%emt 0:03:49]} Bd7 {[%emt 0:09:25]} 12. Nfe3 {[%emt 0:07:06]} Na5 {[%emt 0:06:26]} 13. Bb3 {[%emt 0:02:18]} c6 {[%emt 0:10:58]} 14. Nxf6+ {[%emt 0:03:54]} Qxf6 {[%emt 0:00:06]} 15. Bc2 {[%emt 0:00:23]} b6 {[%emt 0:02:43]} 16. Rf1 {[%emt 0:07:58]} Bh6 {[%emt 0:07:55]} 17. f3 {[%emt 0:05:25]} Bxe3 {[%emt 0:01:55]} 18. Bxe3 {[%emt 0:00:13]} Qg6 {[%emt 0:03:54]} 19. Qd2 {[%emt 0:04:42]} gxf3 {[%emt 0:01:12]} 20. gxf3 {[%emt 0:00:20]} Bh3 {[%emt 0:00:25]} 21. Rh1 {[%emt 0:02:04]} Bg2 {[%emt 0:02:22]} 22. Rg1 {[%emt 0:00:59]} h3 {[%emt 0:00:13]} 23. O-O-O {[%emt 0:00:56]} O-O-O {[%emt 0:03:44]} 24. Qf2 {[%emt 0:02:28]} Kc7 {[%emt 0:01:31]} 25. f4 {[%emt 0:03:54]} f6 {[%emt 0:01:28]} 26. f5 {[%emt 0:02:26]} Qf7 {[%emt 0:05:16]} 27. b4 {[%emt 0:01:52]} Nb7 {[%emt 0:01:21]} 28. Bb3 {[%emt 0:00:06]} d5 {[%emt 0:00:23]} 29. a4 {[%emt 0:01:19]} Qe7 {[%emt 0:02:55]} 30. Kb2 {[%emt 0:01:30]} Rg7 {[%emt 0:04:05]} 31. exd5 {[%emt 0:01:36]} Bxd5 {[%emt 0:01:56]} 32. Bxd5 {[%emt 0:00:33]} Rxd5 {[%emt 0:02:37]} 33. Kc2 {[%emt 0:01:57]} Rd7 {[%emt 0:02:46]} 34. Ra1 {[%emt 0:00:34]} Qd6 {[%emt 0:02:21]} 35. Rad1 {[%emt 0:00:54]} Qd5 {[%emt 0:04:54]} 36. Kb2 {[%emt 0:00:59]} Rg2 {[%emt 0:02:14]} 37. Rxg2 {[%emt 0:00:51]} hxg2 {[%emt 0:00:08]} 38. h4 {[%emt 0:01:18]} Rh7 {[%emt 0:01:24]} 39. Rd2 {[%emt 0:00:38]} Rg7 {[%emt 0:00:37]} 40. Rd1 {[%emt 0:00:32]} Nd6 {[%emt 0:01:57]} 41. Qe2 {[%emt 0:00:00]} Nxf5 {[%emt 0:00:00]} 42. Qf2 {[%emt 0:00:00]} Nxe3 {[%emt 0:00:00]} 43. Qxe3 {[%emt 0:00:00]} f5 {[%emt 0:00:00]} 44. a5 {[%emt 0:00:00]} f4 {[%emt 0:00:00]} 45. axb6+ {[%emt 0:00:00]} axb6 {[%emt 0:00:00]} 46. Qf2 {[%emt 0:00:00]} f3 {[%emt 0:00:00]} 47. Ra1 {[%emt 0:00:00]} Kb7 {[%emt 0:00:00]} 48. Kc2 {[%emt 0:00:00]} g1=Q {[%emt 0:00:00]} 0-1

[Event "GER-ch Youth-U14w 2022"]
[Site "Willingen"]
[Date "2022.06.08"]
[Round "5.8"]
[White "Bursan, Ana-Maria"]
[Black "Mueller, Riyanna"]
[Result "0-1"]
[ECO "B40"]
[WhiteElo "1329"]
[BlackElo "1521"]
[Annotator "NA RC COMBH"]
[PlyCount "112"]
[EventDate "2022.06.05"]
[EventType "swiss"]
[EventRounds "9"]
[EventCountry "GER"]
[SourceTitle "playchess.com"]
[Source "ChessBase"]
[SourceQuality "1"]
[TimeControl "40/4500+30:900+30"]

1. e4 {[%emt 0:00:00]} c5 {[%emt 0:00:00]} 2. Nf3 {[%emt 0:00:00]} e6 {[%emt 0:00:00]} 3. Nc3 {[%emt 0:00:00]} a6 {[%emt 0:00:00]} 4. a4 {[%emt 0:00:00]} Nc6 {[%emt 0:00:00]} 5. Bc4 {[%emt 0:00:00]} Nf6 {[%emt 0:00:00]} 6. d3 {[%emt 0:00:00]} Be7 {[%emt 0:00:00]} 7. O-O {[%emt 0:00:04]} O-O {[%emt 0:00:00]} 8. Re1 {[%emt 0:03:02]} d6 {[%emt 0:00:00]} 9. Ne2 {[%emt 0:02:54]} d5 {[%emt 0:10:57]} 10. exd5 {[%emt 0:01:35]} exd5 {[%emt 0:00:12]} 11. Bb3 {[%emt 0:01:12]} Bg4 {[%emt 0:02:44]} 12. Ng3 {[%emt 0:04:04]} Nd4 {[%emt 0:04:22]} 13. h3 {[%emt 0:02:13]} Nxf3+ {[%emt 0:01:05]} 14. gxf3 {[%emt 0:01:38]} Bxh3 {[%emt 0:00:13]} 15. Kh2 {[%emt 0:03:47]} Be6 {[%emt 0:01:48]} 16. c3 {[%emt 0:01:47]} Bd6 {[%emt 0:01:14]} 17. Rg1 {[%emt 0:03:26]} Nh5 {[%emt 0:02:45]} 18. Kg2 {[%emt 0:02:36]} Nf4+ {[%emt 0:02:30]} 19. Bxf4 {[%emt 0:01:07]} Bxf4 {[%emt 0:00:06]} 20. d4 {[%emt 0:01:04]} c4 {[%emt 0:01:14]} 21. Bc2 {[%emt 0:00:42]} Qg5 {[%emt 0:02:12]} 22. Rh1 {[%emt 0:01:23]} g6 {[%emt 0:00:54]} 23. Qe2 {[%emt 0:05:32]} h5 {[%emt 0:02:04]} 24. Rag1 {[%emt 0:06:37]} h4 {[%emt 0:01:58]} 25. Kf1 {[%emt 0:01:28]} hxg3 {[%emt 0:00:13]} 26. fxg3 {[%emt 0:01:29]} Bd6 {[%emt 0:01:50]} 27. f4 Qg4 {[%emt 0:02:24]} 28. Qf2 {[%emt 0:06:03]} Bf5 {[%emt 0:10:34]} 29. Rh4 {[%emt 0:00:54]} Bd3+ {[%emt 0:00:05]} 30. Bxd3 {[%emt 0:06:35]} Qd1+ {[%emt 0:00:07]} 31. Kg2 {[%emt 0:00:52]} Qxd3 {[%emt 0:00:10]} 32. Kh1 {[%emt 0:03:26]} Rfe8 {[%emt 0:02:15]} 33. Qh2 {[%emt 0:02:33]} Qf3+ {[%emt 0:00:14]} 34. Qg2 {[%emt 0:00:49]} Qxg2+ {[%emt 0:00:16]} 35. Rxg2 {[%emt 0:00:05]} Re1+ {[%emt 0:00:09]} 36. Kh2 {[%emt 0:00:25]} Rae8 {[%emt 0:00:20]} 37. Rg4 {[%emt 0:02:17]} Kg7 {[%emt 0:00:40]} 38. Rh4 {[%emt 0:02:49]} R8e2 {[%emt 0:00:29]} 39. Rh3 {[%emt 0:04:37]} Rxg2+ {[%emt 0:00:14]} 40. Kxg2 {[%emt 0:00:26]} Re2+ {[%emt 0:00:10]} 41. Kf1 {[%emt 0:15:47]} Rxb2 {[%emt 0:15:09]} 42. Ke1 {[%emt 0:00:57]} Rc2 {[%emt 0:00:16]} 43. Kd1 {[%emt 0:01:04]} Rxc3 {[%emt 0:00:11]} 44. Kd2 {[%emt 0:00:41]} Rd3+ {[%emt 0:00:14]} 45. Kc2 {[%emt 0:00:28]} Bxf4 {[%emt 0:00:28]} 46. Rh1 {[%emt 0:00:24]} Bxg3 {[%emt 0:00:22]} 47. Rb1 {[%emt 0:00:11]} Rxd4 {[%emt 0:00:15]} 48. Rxb7 {[%emt 0:00:21]} g5 {[%emt 0:00:21]} 49. Ra7 {[%emt 0:00:25]} g4 {[%emt 0:00:09]} 50. Rxa6 {[%emt 0:00:09]} Be1 {[%emt 0:00:13]} 51. a5 {[%emt 0:01:08]} g3 {[%emt 0:00:11]} 52. Ra8 {[%emt 0:00:16]} g2 {[%emt 0:00:14]} 53. a6 {[%emt 0:00:13]} g1=Q {[%emt 0:00:14]} 54. a7 {[%emt 0:00:10]} Qf2+ {[%emt 0:00:12]} 55. Kc1 {[%emt 0:00:32]} Rd1+ {[%emt 0:00:10]} 56. Kxd1 {[%emt 0:00:21]} Qd2# 0-1

[Event "GER-ch Youth-U14w 2022"]
[Site "Willingen"]
[Date "2022.06.08"]
[Round "5.9"]
[White "Fock, Madiha"]
[Black "Müller, Cosima"]
[Result "1-0"]
[ECO "B77"]
[WhiteElo "1468"]
[BlackElo "1389"]
[Annotator "NA RC COMBH"]
[PlyCount "63"]
[EventDate "2022.06.05"]
[EventType "swiss"]
[EventRounds "9"]
[EventCountry "GER"]
[SourceTitle "playchess.com"]
[Source "ChessBase"]
[SourceQuality "1"]
[TimeControl "40/4500+30:900+30"]

1. e4 {[%emt 0:00:00]} c5 {[%emt 0:00:00]} 2. Nf3 {[%emt 0:00:00]} Nc6 {[%emt 0:00:00]} 3. d4 {[%emt 0:00:00]} cxd4 {[%emt 0:00:00]} 4. Nxd4 {[%emt 0:00:00]} g6 {[%emt 0:00:00]} 5. Be3 {[%emt 0:00:00]} Bg7 {[%emt 0:00:00]} 6. Nc3 {[%emt 0:00:00]} Nf6 {[%emt 0:00:00]} 7. f3 {[%emt 0:00:00]} O-O {[%emt 0:00:00]} 8. Bc4 {[%emt 0:00:00]} d6 {[%emt 0:00:00]} 9. Qd2 {[%emt 0:00:00]} Bd7 {[%emt 0:00:00]} 10. Bb3 {[%emt 0:00:00]} Rc8 {[%emt 0:00:00]} 11. O-O-O {[%emt 0:00:00]} a6 {[%emt 0:00:00]} 12. g4 {[%emt 0:00:09]} b5 {[%emt 0:00:00]} 13. Kb1 {[%emt 0:03:46]} Qc7 {[%emt 0:00:00]} 14. h4 {[%emt 0:07:10]} h5 {[%emt 0:03:43]} 15. gxh5 {[%emt 0:04:51]} Nxh5 {[%emt 0:00:10]} 16. Nd5 {[%emt 0:02:54]} Qd8 {[%emt 0:01:31]} 17. Rdg1 {[%emt 0:10:45]} e6 {[%emt 0:01:05]} 18. Nxc6 {[%emt 0:01:07]} Bxc6 {[%emt 0:00:34]} 19. Bb6 {[%emt 0:03:34]} Qd7 {[%emt 0:02:50]} 20. Nf4 {[%emt 0:05:33]} Nf6 {[%emt 0:03:38]} 21. h5 {[%emt 0:03:55]} e5 {[%emt 0:05:30]} 22. Nxg6 {[%emt 0:02:15]} d5 {[%emt 0:04:50]} 23. Nxf8 {[%emt 0:00:20]} Kxf8 {[%emt 0:00:11]} 24. Bc5+ {[%emt 0:00:22]} Ke8 {[%emt 0:02:11]} 25. Rxg7 {[%emt 0:01:18]} Bb7 {[%emt 0:03:01]} 26. Bb4 {[%emt 0:03:48]} Rd8 {[%emt 0:03:35]} 27. Qg5 {[%emt 0:03:57]} Qe6 {[%emt 0:04:50]} 28. Bc3 {[%emt 0:04:29]} Rd6 {[%emt 0:01:25]} 29. Bxe5 {[%emt 0:02:29]} Rc6 {[%emt 0:00:20]} 30. exd5 {[%emt 0:00:27]} Nxd5 {[%emt 0:01:58]} 31. Rg8+ {[%emt 0:00:06]} Kd7 {[%emt 0:00:06]} 32. Qd8# 1-0